fUST/lending_fUST_20250522
["ID","MTS","AMOUNT","RATE_DAILY","PERIOD"]
[361993598,1747927839688,-430.0,0.00021917,2]
[361993600,1747927839698,-430.0,0.00021917,2]
[361993602,1747927839711,-430.0,0.00021917,2]
[361993604,1747927839721,-1183.87,0.00021917,2]
[361993606,1747927839732,-430.0,0.00021917,2]
[361993608,1747927839742,-464.83,0.00021917,2]
[361993610,1747927839752,-430.0,0.00021917,2]
[361993612,1747927839762,-430.0,0.00021917,2]
[361993614,1747927839772,-430.0,0.00021917,2]
[361993616,1747927839783,-430.0,0.00021917,2]
[361993618,1747927839792,-1912.83,0.00021917,2]
[361993620,1747927839802,-936.22,0.00021917,2]
[361993622,1747927839813,-1452.73,0.00021917,2]
[361993624,1747927839824,-430.0,0.00021917,2]
[361993626,1747927839834,-430.0,0.00021917,2]
[361993628,1747927839844,-430.0,0.00021917,2]
[361993630,1747927839854,-430.0,0.00021917,2]
[361993632,1747927839863,-571.95,0.00021917,2]
[361993634,1747927839873,-430.0,0.00021917,2]
[361993636,1747927839885,-1612.47,0.00021917,2]
[361993638,1747927839897,-270.44,0.00021917,2]
[361993640,1747927839907,-583.24,0.00021917,2]
[361993642,1747927839916,-7234.5,0.00021917,2]
[361993644,1747927839926,-430.0,0.00021917,2]
[361993646,1747927839936,-430.0,0.00021917,2]
[361993649,1747927839946,-430.0,0.00021917,2]
[361993651,1747927839958,-437.33,0.00021917,2]
[361993653,1747927839976,-2252.73,0.00021917,2]
[361993656,1747927839987,-430.0,0.00021917,2]
[361993659,1747927839997,-430.0,0.00021917,2]
[361993661,1747927840007,-827.52,0.00021917,2]
[361993663,1747927840017,-430.0,0.00021917,2]
[361993665,1747927840028,-884.39,0.00021917,2]
[361993667,1747927840037,-1058.55,0.00021917,2]
[361993669,1747927840047,-929.73,0.00021917,2]
[361993671,1747927840057,-430.0,0.00021917,2]
[361993673,1747927840067,-430.0,0.00021917,2]
[361993675,1747927840076,-430.0,0.00021917,2]
[361993677,1747927840086,-430.0,0.00021917,2]
[361993679,1747927840096,-2577.7,0.00021917,2]
[361993681,1747927840106,-673.18,0.00021917,2]
[361993683,1747927840116,-430.0,0.00021917,2]
[361993685,1747927840125,-430.0,0.00021917,2]
[361993687,1747927840135,-430.0,0.00021917,2]
[361993689,1747927840145,-4794.43,0.00021917,2]
[361993691,1747927840154,-470.72224834,0.00021917,2]
[361993693,1747927840164,-723.15,0.00021917,2]
[361993695,1747927840174,-430.0,0.00021917,2]
[361993697,1747927840183,-430.0,0.00021917,2]
[361993699,1747927840193,-2112.48,0.00021917,2]
[361993701,1747927840203,-2448.5,0.00021917,2]
[361993703,1747927840215,-732.85,0.00021917,2]
[361993705,1747927840224,-2447.34,0.00021917,2]
[361993708,1747927840235,-699.44,0.00021917,2]
[361993710,1747927840245,-430.0,0.00021917,2]
[361993712,1747927840254,-430.0,0.00021917,2]
[361993714,1747927840264,-430.0,0.00021917,2]
[361993715,1747927840274,-4055.1,0.00021917,2]
[361993717,1747927840284,-513.89,0.00021917,2]
[361993719,1747927840293,-430.0,0.00021917,2]
[361993721,1747927840303,-1389.92,0.00021917,2]
[361993724,1747927840312,-490.0,0.00021917,2]
[361993726,1747927840322,-822.97,0.00021917,2]
[361993727,1747927840332,-705.97,0.00021917,2]
[361993730,1747927840342,-430.0,0.00021917,2]
[361993732,1747927840351,-579.02,0.00021917,2]
[361993733,1747927840361,-430.0,0.00021917,2]
[361993736,1747927840372,-430.0,0.00021917,2]
[361993738,1747927840382,-1747.1,0.00021917,2]
[361993740,1747927840391,-1756.61,0.00021917,2]
[361993742,1747927840402,-430.0,0.00021917,2]
[361993744,1747927840412,-1924.43,0.00021917,2]
[361993746,1747927840422,-430.0,0.00021917,2]
[361993748,1747927840431,-190.61,0.00021917,2]
[361993750,1747927840441,-516.17,0.00021917,2]
[361993752,1747927840450,-430.0,0.00021917,2]
[361993754,1747927840461,-645.34,0.00021917,2]
[361993756,1747927840471,-430.0,0.00021917,2]
[361993758,1747927840481,-430.0,0.00021917,2]
[361993760,1747927840491,-705.6,0.00021917,2]
[361993762,1747927840500,-2341.03,0.00021917,2]
[361993764,1747927840510,-430.0,0.00021917,2]
[361993766,1747927840520,-960.74,0.00021917,2]
[361993768,1747927840530,-430.0,0.00021917,2]
[361993770,1747927840540,-811.46,0.00021917,2]
[361993771,1747927840549,-430.0,0.00021917,2]
[361993774,1747927840559,-430.0,0.00021917,2]
[361993775,1747927840569,-2315.49,0.00021917,2]
[361993778,1747927840579,-809.33,0.00021917,2]
[361993780,1747927840590,-430.0,0.00021917,2]
[361993782,1747927840599,-815.93,0.00021917,2]
[361993784,1747927840610,-1343.74,0.00021917,2]
[361993786,1747927840620,-430.0,0.00021917,2]
[361993788,1747927840631,-430.0,0.00021917,2]
[361993789,1747927840640,-430.0,0.00021917,2]
[361993791,1747927840650,-430.0,0.00021917,2]
[361993793,1747927840659,-430.0,0.00021917,2]
[361993795,1747927840668,-430.0,0.00021917,2]
[361993797,1747927840679,-3003.06,0.00021917,2]
[361993799,1747927840688,-5774.73,0.00021917,2]
[361993801,1747927840699,-224.91,0.00021917,2]
[361993803,1747927840715,-420.0,0.00021917,2]
[361993804,1747927840727,-430.0,0.00021917,2]
[361993805,1747927840738,-400.0,0.00021917,2]
[361993806,1747927840749,-487.07,0.00021917,2]
[361993807,1747927840760,-426.02,0.00021917,2]
[361993808,1747927840770,-1299.93,0.00021917,2]
[361993809,1747927840780,-430.0,0.00021917,2]
[361993810,1747927840790,-901.04,0.00021917,2]
[361993811,1747927840801,-1866.63,0.00021917,2]
[361993812,1747927840810,-430.0,0.00021917,2]
[361993813,1747927840820,-500.0,0.00021918,2]
[361993814,1747927840830,-500.0,0.00021918,2]
[361993815,1747927840841,-500.0,0.00021918,2]
[361993816,1747927840851,-403.31778643,0.00021918,2]
[361993817,1747927840860,-500.0,0.00021918,2]
[361993818,1747927840870,-500.0,0.00021918,2]
[361993819,1747927840880,-500.0,0.00021918,2]
[361993820,1747927840894,-500.0,0.00021918,2]
[361993821,1747927840903,-500.0,0.00021918,2]
[361993822,1747927840913,-500.0,0.00021918,2]
[361993823,1747927840922,-595.95659499,0.00021973,2]
[361993824,1747927840932,-500.0,0.00021973,2]
[361993825,1747927840942,-1031.09142269,0.00022,2]
[361993826,1747927840951,-1000.0,0.00022,2]
[361993827,1747927840963,-3304.0,0.00022,2]
[361993828,1747927840972,-500.0,0.00022,2]
[361993829,1747927840982,-151.0,0.00022,7]
[361993830,1747927840992,-7159.03698822,0.00022003,6]
[361993838,1747927841164,-160.0,0.00022104,2]
[361993840,1747927841176,-422.78357425,0.00022104,2]
[361993842,1747927841186,-160.0,0.00022104,2]
[361993844,1747927841196,-160.0,0.00022104,2]
[361993846,1747927841206,-894.64583333,0.00022104,2]
[361993848,1747927841218,-212.4501065,0.00022104,2]
[361993850,1747927841228,-12645.25887003,0.00022104,2]
[361993852,1747927841239,-314.54559427,0.00022104,2]
[361993854,1747927841248,-1303.13444087,0.0002215,2]
[361993856,1747927841258,-430.0,0.00022191,2]
[361993858,1747927841268,-430.0,0.00022191,2]
[361993860,1747927841278,-430.0,0.00022191,2]
[361993862,1747927841287,-430.0,0.00022191,2]
[361993864,1747927841297,-430.0,0.00022191,2]
[361993866,1747927841307,-430.0,0.00022191,2]
[361993868,1747927841318,-2376.5,0.00022191,2]
[361993870,1747927841327,-936.78,0.00022191,2]
[361993872,1747927841337,-522.0,0.00022191,2]
[361993874,1747927841346,-430.0,0.00022191,2]
[361993876,1747927841356,-454.84,0.00022191,2]
[361993878,1747927841365,-1072.81,0.00022191,2]
[361993880,1747927841375,-430.0,0.00022191,2]
[361993882,1747927841385,-430.0,0.00022191,2]
[361993884,1747927841394,-430.0,0.00022191,2]
[361993886,1747927841403,-992.91,0.00022191,2]
[361993888,1747927841413,-430.0,0.00022191,2]
[361993890,1747927841422,-358.45962418,0.00022191,2]
[361993892,1747927841432,-430.0,0.00022191,2]
[361993894,1747927841442,-498.64,0.00022191,2]
[361993896,1747927841451,-1214.74,0.00022191,2]
[361993898,1747927841461,-430.0,0.00022191,2]
[361993900,1747927841471,-430.0,0.00022191,2]
[361993902,1747927841480,-430.0,0.00022191,2]
[361993904,1747927841490,-430.0,0.00022191,2]
[361993906,1747927841500,-1183.87,0.00022191,2]
[361993908,1747927841510,-430.0,0.00022191,2]
[361993910,1747927841519,-464.83,0.00022191,2]
[361993912,1747927841529,-430.0,0.00022191,2]
[361993914,1747927841539,-430.0,0.00022191,2]
[361993916,1747927841549,-560.0,0.00022191,2]
[361993918,1747927841559,-315.78953446,0.00022191,2]
[361993920,1747927841568,-1912.83,0.00022191,2]
[361993922,1747927841578,-936.22,0.00022191,2]
[361993924,1747927841588,-1452.73,0.00022191,2]
[361993926,1747927841598,-430.0,0.00022191,2]
[361993928,1747927841608,-430.0,0.00022191,2]
[361993930,1747927841619,-430.0,0.00022191,2]
[361993932,1747927841629,-430.0,0.00022191,2]
[361993934,1747927841639,-571.95,0.00022191,2]
[361993936,1747927841649,-430.0,0.00022191,2]
[361993938,1747927841658,-1612.47,0.00022191,2]
[361993940,1747927841668,-583.24,0.00022191,2]
[361993942,1747927841678,-7234.5,0.00022191,2]
[361993944,1747927841687,-430.0,0.00022191,2]
[361993946,1747927841696,-430.0,0.00022191,2]
[361993948,1747927841706,-430.0,0.00022191,2]
[361993950,1747927841718,-437.33,0.00022191,2]
[361993952,1747927841730,-2252.73,0.00022191,2]
[361993954,1747927841740,-228.0,0.00022191,2]
[361993956,1747927841750,-430.0,0.00022191,2]
[361993958,1747927841759,-430.0,0.00022191,2]
[361993960,1747927841769,-827.52,0.00022191,2]
[361993962,1747927841779,-884.39,0.00022191,2]
[361993964,1747927841788,-1058.55,0.00022191,2]
[361993966,1747927841798,-929.73,0.00022191,2]
[361993968,1747927841808,-430.0,0.00022191,2]
[361993970,1747927841818,-430.0,0.00022191,2]
[361993973,1747927841828,-430.0,0.00022191,2]
[361993975,1747927841838,-430.0,0.00022191,2]
[361993977,1747927841847,-2577.7,0.00022191,2]
[361993979,1747927841857,-673.18,0.00022191,2]
[361993981,1747927841866,-450.56,0.00022191,2]
[361993982,1747927841875,-430.0,0.00022191,2]
[361993984,1747927841886,-430.0,0.00022191,2]
[361993986,1747927841895,-4794.43,0.00022191,2]
[361993988,1747927841905,-723.15,0.00022191,2]
[361993990,1747927841915,-430.0,0.00022191,2]
[361993992,1747927841924,-430.0,0.00022191,2]
[361993994,1747927841934,-2112.48,0.00022191,2]
[361993996,1747927841943,-2448.5,0.00022191,2]
[361993998,1747927841953,-732.85,0.00022191,2]
[361994000,1747927841963,-2447.34,0.00022191,2]
[361994002,1747927841973,-699.44,0.00022191,2]
[361994004,1747927841982,-430.0,0.00022191,2]
[361994006,1747927841992,-430.0,0.00022191,2]
[361994008,1747927842001,-430.0,0.00022191,2]
[361994010,1747927842011,-4055.1,0.00022191,2]
[361994012,1747927842020,-513.89,0.00022191,2]
[361994014,1747927842030,-430.0,0.00022191,2]
[361994016,1747927842039,-1389.92,0.00022191,2]
[361994018,1747927842049,-822.97,0.00022191,2]
[361994020,1747927842060,-705.97,0.00022191,2]
[361994022,1747927842069,-430.0,0.00022191,2]
[361994024,1747927842079,-579.02,0.00022191,2]
[361994026,1747927842089,-1747.1,0.00022191,2]
[361994028,1747927842099,-1756.61,0.00022191,2]
[361994030,1747927842108,-178.41876216,0.00022191,2]
[361994032,1747927842118,-1924.43,0.00022191,2]
[361994034,1747927842128,-645.34,0.00022191,2]
[361994036,1747927842138,-430.0,0.00022191,2]
[361994038,1747927842147,-705.6,0.00022191,2]
[361994040,1747927842157,-2341.03,0.00022191,2]
[361994042,1747927842166,-430.0,0.00022191,2]
[361994044,1747927842176,-960.74,0.00022191,2]
[361994046,1747927842185,-430.0,0.00022191,2]
[361994048,1747927842195,-811.46,0.00022191,2]
[361994050,1747927842204,-2315.49,0.00022191,2]
[361994052,1747927842215,-809.33,0.00022191,2]
[361994054,1747927842224,-430.0,0.00022191,2]
[361994056,1747927842235,-815.93,0.00022191,2]
[361994059,1747927842244,-1343.74,0.00022191,2]
[361994061,1747927842254,-430.0,0.00022191,2]
[361994063,1747927842264,-430.0,0.00022191,2]
[361994065,1747927842274,-360.28291869,0.00022191,2]
[361994067,1747927842284,-430.0,0.00022191,2]
[361994069,1747927842294,-430.0,0.00022191,2]
[361994071,1747927842303,-3003.06,0.00022191,2]
[361994073,1747927842313,-5774.73,0.00022191,2]
[361994075,1747927842322,-430.0,0.00022191,2]
[361994077,1747927842332,-487.07,0.00022191,2]
[361994079,1747927842342,-1299.93,0.00022191,2]
[361994081,1747927842351,-901.04,0.00022191,2]
[361994082,1747927842360,-1866.63,0.00022191,2]
[361994084,1747927842370,-430.0,0.00022191,2]
[361994087,1747927842380,-7159.03698822,0.0002221,6]
[361994089,1747927842390,-5000.0,0.0002222,2]
[361994091,1747927842400,-151.0,0.000223,10]
[361994093,1747927842409,-755.88111119,0.00022318,2]
[361994094,1747927842419,-283.56,0.000224,2]
[361994096,1747927842429,-500.0,0.00022405,2]
[361994099,1747927842439,-7159.03698822,0.00022417,7]
[361994101,1747927842448,-25856.85577581,0.00022463,2]
[361994342,1747927844765,-420.0,0.00021775,2]
[361994344,1747927844779,-97499.19398957,0.00022463,2]
[361994347,1747927844793,-430.0,0.00022465,2]
[361994349,1747927844808,-430.0,0.00022465,2]
[361994352,1747927844820,-430.0,0.00022465,2]
[361994354,1747927844834,-450.0,0.00022465,2]
[361994357,1747927844848,-430.0,0.00022465,2]
[361994359,1747927844862,-2376.5,0.00022465,2]
[361994362,1747927844877,-936.78,0.00022465,2]
[361994364,1747927844888,-522.0,0.00022465,2]
[361994366,1747927844899,-430.0,0.00022465,2]
[361994368,1747927844910,-1072.81,0.00022465,2]
[361994370,1747927844920,-430.0,0.00022465,2]
[361994373,1747927844932,-430.0,0.00022465,2]
[361994375,1747927844944,-431.94760888,0.00022465,2]
[361994378,1747927844958,-992.91,0.00022465,2]
[361994381,1747927844972,-430.0,0.00022465,2]
[361994384,1747927844985,-430.0,0.00022465,2]
[361994387,1747927844995,-498.64,0.00022465,2]
[361994390,1747927845007,-1214.74,0.00022465,2]
[361994392,1747927845020,-430.0,0.00022465,2]
[361994394,1747927845031,-430.0,0.00022465,2]
[361994396,1747927845043,-430.0,0.00022465,2]
[361994399,1747927845055,-430.0,0.00022465,2]
[361994401,1747927845067,-1183.87,0.00022465,2]
[361994403,1747927845077,-430.0,0.00022465,2]
[361994405,1747927845088,-464.83,0.00022465,2]
[361994408,1747927845101,-430.0,0.00022465,2]
[361994410,1747927845115,-430.0,0.00022465,2]
[361994412,1747927845127,-1912.83,0.00022465,2]
[361994414,1747927845138,-936.22,0.00022465,2]
[361994417,1747927845149,-1452.73,0.00022465,2]
[361994419,1747927845161,-304.42807086,0.00022465,2]
[361994421,1747927845172,-430.0,0.00022465,2]
[361994423,1747927845184,-430.0,0.00022465,2]
[361994426,1747927845196,-430.0,0.00022465,2]
[361994427,1747927845208,-571.95,0.00022465,2]
[361994430,1747927845222,-1612.47,0.00022465,2]
[361994432,1747927845234,-583.24,0.00022465,2]
[361994434,1747927845247,-7234.5,0.00022465,2]
[361994436,1747927845259,-430.0,0.00022465,2]
[361994439,1747927845272,-430.0,0.00022465,2]
[361994441,1747927845284,-437.33,0.00022465,2]
[361994443,1747927845295,-2252.73,0.00022465,2]
[361994445,1747927845307,-430.0,0.00022465,2]
[361994446,1747927845318,-827.52,0.00022465,2]
[361994447,1747927845330,-430.0,0.00022465,2]
[361994448,1747927845342,-884.39,0.00022465,2]
[361994449,1747927845354,-1058.55,0.00022465,2]
[361994450,1747927845368,-929.73,0.00022465,2]
[361994451,1747927845386,-430.0,0.00022465,2]
[361994452,1747927845402,-430.0,0.00022465,2]
[361994453,1747927845415,-430.0,0.00022465,2]
[361994454,1747927845427,-430.0,0.00022465,2]
[361994455,1747927845439,-2577.7,0.00022465,2]
[361994456,1747927845450,-673.18,0.00022465,2]
[361994457,1747927845462,-430.0,0.00022465,2]
[361994458,1747927845475,-430.0,0.00022465,2]
[361994459,1747927845487,-4794.43,0.00022465,2]
[361994460,1747927845499,-723.15,0.00022465,2]
[361994461,1747927845511,-430.0,0.00022465,2]
[361994462,1747927845522,-430.0,0.00022465,2]
[361994463,1747927845534,-2112.48,0.00022465,2]
[361994464,1747927845546,-2448.5,0.00022465,2]
[361994465,1747927845558,-732.85,0.00022465,2]
[361994466,1747927845569,-2447.34,0.00022465,2]
[361994467,1747927845581,-699.44,0.00022465,2]
[361994468,1747927845593,-520.0,0.00022465,2]
[361994469,1747927845605,-450.0,0.00022465,2]
[361994470,1747927845618,-430.0,0.00022465,2]
[361994471,1747927845630,-4055.1,0.00022465,2]
[361994472,1747927845642,-513.89,0.00022465,2]
[361994473,1747927845654,-502.02968673,0.00022465,2]
[361994474,1747927845667,-1389.92,0.00022465,2]
[361994475,1747927845679,-822.97,0.00022465,2]
[361994476,1747927845691,-705.97,0.00022465,2]
[361994477,1747927845703,-430.0,0.00022465,2]
[361994478,1747927845715,-579.02,0.00022465,2]
[361994479,1747927845730,-1747.1,0.00022465,2]
[361994481,1747927845743,-1756.61,0.00022465,2]
[361994483,1747927845756,-1924.43,0.00022465,2]
[361994485,1747927845767,-645.34,0.00022465,2]
[361994487,1747927845780,-430.0,0.00022465,2]
[361994489,1747927845792,-705.6,0.00022465,2]
[361994491,1747927845805,-2341.03,0.00022465,2]
[361994493,1747927845818,-430.0,0.00022465,2]
[361994495,1747927845831,-960.74,0.00022465,2]
[361994497,1747927845843,-430.0,0.00022465,2]
[361994500,1747927845855,-811.46,0.00022465,2]
[361994502,1747927845867,-2315.49,0.00022465,2]
[361994504,1747927845879,-809.33,0.00022465,2]
[361994506,1747927845892,-430.0,0.00022465,2]
[361994509,1747927845904,-815.93,0.00022465,2]
[361994511,1747927845917,-1343.74,0.00022465,2]
[361994513,1747927845929,-430.0,0.00022465,2]
[361994515,1747927845939,-430.0,0.00022465,2]
[361994517,1747927845949,-430.0,0.00022465,2]
[361994519,1747927845959,-430.0,0.00022465,2]
[361994522,1747927845971,-3003.06,0.00022465,2]
[361994524,1747927845981,-5774.73,0.00022465,2]
[361994526,1747927845991,-430.0,0.00022465,2]
[361994528,1747927846001,-487.07,0.00022465,2]
[361994530,1747927846012,-1299.93,0.00022465,2]
[361994532,1747927846022,-901.04,0.00022465,2]
[361994534,1747927846033,-1866.63,0.00022465,2]
[361994536,1747927846042,-401.41,0.00022465,2]
[361994538,1747927846052,-423.38314627,0.00022473,2]
[361994540,1747927846062,-500.0,0.00022473,2]
[361994542,1747927846072,-216.02164005,0.00022473,2]
[361994544,1747927846082,-500.0,0.00022473,2]
[361994546,1747927846092,-500.0,0.00022473,2]
[361994548,1747927846101,-500.0,0.00022473,2]
[361994550,1747927846111,-181.20115032,0.00022473,2]
[361994552,1747927846120,-500.0,0.00022473,2]
[361994554,1747927846130,-500.0,0.00022473,2]
[361994556,1747927846141,-215.0738,0.00022493,2]
[361994558,1747927846149,-151.0,0.00022493,2]
[361994560,1747927846158,-151.0,0.000225,8]
[361994562,1747927846168,-7159.03698822,0.00022624,7]
[361994564,1747927846180,-314.54559427,0.00022624,7]
[361994566,1747927846190,-1500.0,0.00022639,2]
[361994594,1747927846458,-166.00174823,0.00022639,2]
[361994597,1747927846475,-205.0,0.0002266,2]
[361994599,1747927846486,-430.0,0.00022739,2]
[361994601,1747927846496,-430.0,0.00022739,2]
[361994603,1747927846506,-324.54655153,0.00022739,2]
[361994605,1747927846516,-430.0,0.00022739,2]
[361994607,1747927846525,-2376.5,0.00022739,2]
[361994609,1747927846534,-936.78,0.00022739,2]
[361994611,1747927846544,-522.0,0.00022739,2]
[361994613,1747927846554,-430.0,0.00022739,2]
[361994615,1747927846564,-1072.81,0.00022739,2]
[361994617,1747927846574,-430.0,0.00022739,2]
[361994619,1747927846583,-430.0,0.00022739,2]
[361994621,1747927846593,-992.91,0.00022739,2]
[361994623,1747927846603,-430.0,0.00022739,2]
[361994625,1747927846613,-430.0,0.00022739,2]
[361994627,1747927846623,-498.64,0.00022739,2]
[361994629,1747927846632,-1214.74,0.00022739,2]
[361994631,1747927846642,-430.0,0.00022739,2]
[361994633,1747927846651,-430.0,0.00022739,2]
[361994635,1747927846660,-430.0,0.00022739,2]
[361994637,1747927846670,-430.0,0.00022739,2]
[361994639,1747927846679,-1183.87,0.00022739,2]
[361994641,1747927846689,-430.0,0.00022739,2]
[361994643,1747927846698,-464.83,0.00022739,2]
[361994645,1747927846707,-430.0,0.00022739,2]
[361994647,1747927846720,-430.0,0.00022739,2]
[361994649,1747927846730,-1912.83,0.00022739,2]
[361994651,1747927846740,-936.22,0.00022739,2]
[361994653,1747927846749,-1452.73,0.00022739,2]
[361994655,1747927846760,-430.0,0.00022739,2]
[361994657,1747927846769,-430.0,0.00022739,2]
[361994659,1747927846779,-430.0,0.00022739,2]
[361994661,1747927846789,-571.95,0.00022739,2]
[361994663,1747927846799,-1612.47,0.00022739,2]
[361994665,1747927846809,-583.24,0.00022739,2]
[361994667,1747927846818,-7234.5,0.00022739,2]
[361994669,1747927846828,-430.0,0.00022739,2]
[361994671,1747927846837,-430.0,0.00022739,2]
[361994673,1747927846847,-437.33,0.00022739,2]
[361994675,1747927846856,-2252.73,0.00022739,2]
[361994678,1747927846867,-430.0,0.00022739,2]
[361994680,1747927846876,-827.52,0.00022739,2]
[361994682,1747927846886,-430.0,0.00022739,2]
[361994684,1747927846895,-884.39,0.00022739,2]
[361994686,1747927846905,-1058.55,0.00022739,2]
[361994688,1747927846915,-929.73,0.00022739,2]
[361994690,1747927846924,-430.0,0.00022739,2]
[361994692,1747927846934,-430.0,0.00022739,2]
[361994694,1747927846944,-430.0,0.00022739,2]
[361994696,1747927846957,-430.0,0.00022739,2]
[361994698,1747927846967,-2577.7,0.00022739,2]
[361994700,1747927846977,-673.18,0.00022739,2]
[361994702,1747927846987,-430.0,0.00022739,2]
[361994704,1747927846996,-4794.43,0.00022739,2]
[361994706,1747927847006,-723.15,0.00022739,2]
[361994708,1747927847016,-430.0,0.00022739,2]
[361994710,1747927847026,-430.0,0.00022739,2]
[361994712,1747927847035,-2112.48,0.00022739,2]
[361994714,1747927847046,-2448.5,0.00022739,2]
[361994716,1747927847057,-732.85,0.00022739,2]
[361994718,1747927847067,-2447.34,0.00022739,2]
[361994720,1747927847076,-699.44,0.00022739,2]
[361994722,1747927847086,-430.0,0.00022739,2]
[361994724,1747927847095,-4055.1,0.00022739,2]
[361994726,1747927847105,-513.89,0.00022739,2]
[361994728,1747927847115,-1389.92,0.00022739,2]
[361994730,1747927847124,-822.97,0.00022739,2]
[361994732,1747927847134,-705.97,0.00022739,2]
[361994734,1747927847144,-430.0,0.00022739,2]
[361994736,1747927847155,-579.02,0.00022739,2]
[361994738,1747927847165,-1747.1,0.00022739,2]
[361994740,1747927847175,-1756.61,0.00022739,2]
[361994742,1747927847185,-1924.43,0.00022739,2]
[361994744,1747927847195,-645.34,0.00022739,2]
[361994746,1747927847205,-430.0,0.00022739,2]
[361994748,1747927847215,-705.6,0.00022739,2]
[361994749,1747927847226,-2341.03,0.00022739,2]
[361994751,1747927847236,-430.0,0.00022739,2]
[361994753,1747927847246,-960.74,0.00022739,2]
[361994754,1747927847257,-430.0,0.00022739,2]
[361994756,1747927847266,-811.46,0.00022739,2]
[361994757,1747927847276,-2315.49,0.00022739,2]
[361994758,1747927847287,-809.33,0.00022739,2]
[361994759,1747927847296,-815.93,0.00022739,2]
[361994760,1747927847307,-1343.74,0.00022739,2]
[361994761,1747927847316,-430.0,0.00022739,2]
[361994762,1747927847326,-430.0,0.00022739,2]
[361994763,1747927847336,-430.0,0.00022739,2]
[361994764,1747927847346,-430.0,0.00022739,2]
[361994765,1747927847356,-3003.06,0.00022739,2]
[361994766,1747927847366,-5774.73,0.00022739,2]
[361994767,1747927847376,-430.0,0.00022739,2]
[361994768,1747927847386,-487.07,0.00022739,2]
[361994769,1747927847396,-1299.93,0.00022739,2]
[361994770,1747927847406,-901.04,0.00022739,2]
[361994771,1747927847416,-1866.63,0.00022739,2]
[361994772,1747927847426,-5000.0,0.00022768,2]
[361994773,1747927847437,-1166.73769295,0.00022783,2]
[361994774,1747927847447,-7159.03698822,0.00022831,8]
[361994775,1747927847458,-159.05485592,0.00022849,2]
[361994776,1747927847469,-500.0,0.00023,30]
[361994777,1747927847479,-500.0,0.00023,30]
[361994778,1747927847488,-500.0,0.00023,30]
[361994779,1747927847498,-500.0,0.00023,30]
[361994780,1747927847507,-160.0,0.00023,3]
[361994781,1747927847517,-422.78357425,0.00023,3]
[361994782,1747927847526,-1252.25591989,0.00023,120]
[361994783,1747927847535,-430.0,0.00023013,2]
[361994784,1747927847545,-430.0,0.00023013,2]
[361994785,1747927847554,-430.0,0.00023013,2]
[361994786,1747927847564,-2376.5,0.00023013,2]
[361994787,1747927847573,-936.78,0.00023013,2]
[361994788,1747927847582,-522.0,0.00023013,2]
[361994789,1747927847591,-430.0,0.00023013,2]
[361994790,1747927847600,-1072.81,0.00023013,2]
[361994791,1747927847610,-430.0,0.00023013,2]
[361994792,1747927847619,-430.0,0.00023013,2]